fUST/lending_fUST_20240817
["ID","MTS","AMOUNT","RATE_DAILY","PERIOD"]
[335094987,1723824330123,-300.0,0.00011876,2]
[335094988,1723824330145,-2991.77288618,0.00011877,2]
[335094989,1723824442116,-300.0,0.00011876,2]
[335094990,1723824442139,-1083.91877699,0.00011877,2]
[335094996,1723824551116,-300.0,0.00011841,2]
[335094997,1723824551140,-20784.67491515,0.00011842,2]
[335094998,1723824551162,-6318.88476485,0.00011877,2]
[335094999,1723824562111,-2332.16941064,0.00011877,2]
[335095000,1723824568178,-11814.80307917,0.00011877,2]
[335095002,1723824572137,-358.45108217,0.00011877,2]
[335095003,1723824572158,-1670.92226544,0.00011877,2]
[335095004,1723824572178,-9654.55565372,0.00012516,2]
[335095005,1723824572201,-2584.3384,0.00012516,2]
[335095006,1723824572360,-2127.39988805,0.00012551,2]
[335095007,1723824572382,-1752.49576635,0.00012629,3]
[335095008,1723824572405,-183.27485448,0.00012899,2]
[335095009,1723824572426,-520.31494712,0.00012934,2]
[335095010,1723824572448,-14.53597447,0.00012934,2]
[335095011,1723824575668,198.0,0.00010101,2]
[335095044,1723824632328,-183.27485447,0.00012891,2]
[335095045,1723824632338,-1515.28949489,0.000129,2]
[335095046,1723824632347,-493.03932546,0.00012971,2]
[335095047,1723824632356,-322.11881907,0.00012971,2]
[335095048,1723824632367,-61.63710652,0.00012971,2]
[335095049,1723824632377,-1057.37014352,0.00012971,2]
[335095050,1723824632386,-22965.0225053,0.0001298,2]
[335095071,1723824638413,-38805.0169185,0.0001298,2]
[335095073,1723824638423,-688.33798731,0.00012985,2]
[335095074,1723824638432,-665.1114012,0.00012989,2]
[335095076,1723824638442,-123540.078848,0.0001299,2]
[335095078,1723824638451,-100000.0,0.00013,2]
[335095079,1723824638461,-162.81928945,0.00013,2]
[335095080,1723824638471,-183.27485447,0.00013692,2]
[335095081,1723824638480,-342.54706255,0.00013697,2]
[335095082,1723824638489,-993.12728435,0.00013697,2]
[335095084,1723824638499,-980.88998095,0.00013697,2]
[335095086,1723824638508,-500.0,0.00013698,2]
[335095088,1723824638518,-352.96120941,0.00013698,2]
[335095089,1723824638527,-157.13401873,0.00013698,2]
[335095091,1723824638536,-413.45265018,0.00013698,2]
[335095092,1723824638546,-3000.0,0.00013699,2]
[335095093,1723824638555,-186.270078,0.00013699,2]
[335095094,1723824638565,-500.0,0.00013699,2]
[335095095,1723824638576,-500.0,0.00013699,2]
[335095096,1723824638587,-500.0,0.00013699,2]
[335095097,1723824638599,-300.0,0.00013699,2]
[335095098,1723824638608,-200.0,0.00013773,2]
[335095099,1723824638618,-123540.078848,0.00013786,2]
[335095100,1723824638628,-166.492773,0.00014247,2]
[335095101,1723824638638,-165.265128,0.00014247,2]
[335095102,1723824638648,-162.69036117,0.00015142,2]
[335095103,1723824638658,-1126.90206351,0.00015677,2]
[335095104,1723824638667,-1515.28949484,0.00017958,2]
[335095105,1723824638677,-150.673398,0.000195,2]
[335095106,1723824638686,-8216.73354748,0.0002,2]
[335095107,1723824638696,-150.112233,0.000211,4]
[335095108,1723824638706,-23177.15654,0.00021918,2]
[335095109,1723824638716,-150.112233,0.000227,2]
[335095110,1723824638726,-1515.28949484,0.0002303,2]
[335095111,1723824638736,-150.112233,0.000243,3]
[335095112,1723824638745,-782.1935295,0.00024662,2]
[335095113,1723824638754,-155.72824087,0.00024688,2]
[335095114,1723824638764,-882.51902373,0.00024728,2]
[335095115,1723824638774,-12214.20624693,0.00025,30]
[335095116,1723824638783,-150.112233,0.000259,7]
[335095117,1723824638793,-600.0,0.00026009,2]
[335095118,1723824638803,-900.0,0.00026435,2]
[335095119,1723824638955,-1000.0,0.00026587,2]
[335095120,1723824638965,-600.0,0.00026628,2]
[335095121,1723824638975,-500.0,0.0002667,2]
[335095122,1723824638986,-600.0,0.00026741,2]
[335095123,1723824638995,-900.0,0.00026768,2]
[335095124,1723824639009,-900.0,0.00026788,2]
[335095125,1723824639019,-500.0,0.00026876,2]
[335095126,1723824639029,-1000.0,0.00027025,2]
[335095127,1723824639039,-1000.0,0.00027068,2]
[335095129,1723824639048,-600.0,0.00027099,2]
[335095130,1723824639058,-500.0,0.00027177,2]
[335095131,1723824639071,-505.12022929,0.00027177,2]
[335095132,1723824639081,-1000.0,0.0002721,2]
[335095133,1723824639090,-900.0,0.00027339,2]
[335095134,1723824639100,-5000.0,0.00027427,2]
[335095135,1723824639110,-150.112233,0.000276,5]
[335095136,1723824639120,-1396.76273479,0.0002801,2]
[335095137,1723824639130,-600.0,0.00028023,2]
[335095138,1723824639140,-200.0,0.00028073,5]
[335095139,1723824639149,-1515.28949484,0.00028103,2]
[335095140,1723824639159,-220283.99,0.0002811,30]
[335095141,1723824639169,-151.0,0.0002811,7]
[335095142,1723824639179,-1556.992901,0.0002811,7]
[335095143,1723824639189,-1874.702581,0.0002811,7]
[335095144,1723824639199,-1874.702581,0.0002811,7]
[335095145,1723824639209,-151.0,0.0002811,7]
[335095146,1723824639223,-151.0,0.0002811,7]
[335095147,1723824639233,-195.388848,0.0002811,7]
[335095148,1723824639244,-151.0,0.0002811,7]
[335095149,1723824639255,-357.926966,0.0002811,7]
[335095150,1723824639268,-357.926966,0.0002811,7]
[335095151,1723824639277,-1472.33241,0.0002811,7]
[335095152,1723824639287,-1472.33241,0.0002811,7]
[335095153,1723824639299,-151.0,0.0002811,7]
[335095154,1723824639309,-272.111772,0.0002811,7]
[335095155,1723824639319,-151.0,0.0002811,7]
[335095156,1723824639329,-272.111772,0.0002811,7]
[335095157,1723824639340,-151.0,0.0002811,7]
[335095158,1723824639349,-151.0,0.0002811,7]
[335095159,1723824639359,-151.0,0.0002811,7]
[335095160,1723824639369,-1127.211561,0.0002811,7]
[335095161,1723824639379,-1127.211561,0.0002811,7]
[335095162,1723824639388,-151.0,0.0002811,7]
[335095163,1723824639399,-475.93383457,0.00028162,2]
[335095164,1723824639409,-900.0,0.0002834,2]
[335095165,1723824639418,-1000.0,0.00028423,2]
[335095166,1723824639428,-153.876601,0.00029178,7]
[335095167,1723824639438,-160.518571,0.00029178,7]
[335095168,1723824639448,-151.0,0.00029178,7]
[335095169,1723824639458,-151.0,0.00029178,7]
[335095170,1723824639468,-151.0,0.00029178,7]
[335095171,1723824639478,-151.0,0.00029178,7]
[335095172,1723824639487,-151.0,0.00029178,7]
[335095173,1723824639497,-151.0,0.00029178,7]
[335095174,1723824639507,-1141.772691,0.00029178,7]
[335095175,1723824639517,-1770.592658,0.00029178,7]
[335095176,1723824639527,-1770.592658,0.00029178,7]
[335095177,1723824639538,-600.0,0.000292,2]
[335095178,1723824639548,-400.0,0.00029442,5]
[335095179,1723824639557,-465.54669173,0.0002957,2]
[335095180,1723824639568,-166.492773,0.00029589,2]
[335095181,1723824639577,-1333.66462,0.000296,7]
[335095182,1723824639587,-500.0,0.00029699,2]
[335095183,1723824639596,-500.0,0.00029726,2]
[335095184,1723824639605,-159.21,0.000298,31]
[335095185,1723824639615,-500.0,0.0002981,2]
[335095186,1723824639624,-3000.0,0.000299,2]
[335095187,1723824639633,-500.0,0.00029906,2]
[335095188,1723824639643,-3000.0,0.0002991,2]
[335095189,1723824639654,-3000.0,0.0002992,2]
[335095190,1723824639664,-3000.0,0.0002993,2]
[335095191,1723824639674,-3000.0,0.0002994,2]
[335095192,1723824639684,-3000.0,0.0002995,2]
[335095193,1723824639694,-3000.0,0.0002996,2]
[335095194,1723824639704,-3000.0,0.0002997,2]
[335095195,1723824639714,-3000.0,0.0002998,2]
[335095196,1723824639725,-3000.0,0.0002999,2]
[335095197,1723824639734,-3605.27,0.0003,14]
[335095198,1723824639743,-1208.12,0.0003,7]
[335095199,1723824639753,-75229.62,0.0003,14]
[335095200,1723824639762,-150.0,0.0003,7]
[335095201,1723824639773,-3000.0,0.0003,2]
[335095202,1723824639783,-3000.0,0.0003001,2]
[335095203,1723824639792,-3000.0,0.0003002,2]
[335095204,1723824639802,-3000.0,0.0003003,2]
[335095205,1723824639811,-151.0,0.0003004,7]
[335095206,1723824639824,-3000.0,0.0003004,2]
[335095207,1723824639834,-3000.0,0.0003005,2]
[335095208,1723824639843,-3000.0,0.0003006,2]
[335095209,1723824639853,-600.0,0.00030061,7]
[335095210,1723824639863,-3000.0,0.0003007,2]
[335095211,1723824639873,-3000.0,0.0003008,2]
[335095212,1723824639883,-152.68378,0.0003008,7]
[335095213,1723824639893,-1556.992901,0.0003008,7]
[335095214,1723824639903,-1874.702581,0.0003008,7]
[335095215,1723824639914,-1874.702581,0.0003008,7]
[335095216,1723824639924,-151.0,0.0003008,7]
[335095217,1723824639935,-151.0,0.0003008,7]
[335095218,1723824639945,-255.0,0.0003008,7]
[335095219,1723824639955,-357.926966,0.0003008,7]
[335095220,1723824639965,-357.926966,0.0003008,7]
[335095221,1723824639975,-1472.33241,0.0003008,7]
[335095222,1723824639986,-1472.33241,0.0003008,7]
[335095223,1723824639995,-151.0,0.0003008,7]
[335095224,1723824640006,-272.111772,0.0003008,7]
[335095227,1723824640016,-199.929493,0.0003008,7]
[335095230,1723824640026,-272.111772,0.0003008,7]
[335095232,1723824640035,-152.754237,0.0003008,7]
[335095234,1723824640044,-291.983362,0.0003008,7]
[335095235,1723824640054,-151.0,0.0003008,7]
[335095237,1723824640068,-1127.211561,0.0003008,7]
[335095239,1723824640078,-1127.211561,0.0003008,7]
[335095241,1723824640088,-151.0,0.0003008,7]
[335095242,1723824640097,-151.0,0.0003008,7]
[335095244,1723824640107,-151.0,0.0003008,7]
[335095246,1723824640117,-151.0,0.0003008,7]
[335095248,1723824640127,-1446.920243,0.0003008,7]
[335095250,1723824640136,-1446.920243,0.0003008,7]
[335095252,1723824640146,-151.0,0.0003008,7]
[335095253,1723824640156,-151.0,0.0003008,7]
[335095254,1723824640166,-151.0,0.0003008,7]
[335095255,1723824640176,-3000.0,0.0003009,2]
[335095256,1723824640185,-3000.0,0.000301,2]
[335095257,1723824640195,-151.0,0.000301,7]
[335095258,1723824640205,-1000.0,0.000301,7]
[335095259,1723824640215,-360570.45762564,0.0003011,30]
[335095262,1723824640483,-110779.90727436,0.0003011,30]
[335095264,1723824640492,-3000.0,0.0003011,2]
[335095265,1723824640502,-151.0,0.0003011,7]
[335095266,1723824640512,-1556.992901,0.0003011,7]
[335095267,1723824640522,-1874.702581,0.0003011,7]
[335095268,1723824640532,-1874.702581,0.0003011,7]
[335095270,1723824640541,-151.0,0.0003011,7]
[335095271,1723824640551,-151.0,0.0003011,7]
[335095272,1723824640561,-357.926966,0.0003011,7]
[335095274,1723824640576,-357.926966,0.0003011,7]
[335095275,1723824640586,-1472.33241,0.0003011,7]
[335095276,1723824640595,-1472.33241,0.0003011,7]
[335095277,1723824640605,-151.0,0.0003011,7]
[335095278,1723824640614,-272.111772,0.0003011,7]
[335095279,1723824640624,-272.111772,0.0003011,7]
[335095281,1723824640633,-151.0,0.0003011,7]
[335095282,1723824640643,-808.89920306,0.0003011,7]
[335095283,1723824640655,-318.31235794,0.0003011,7]
[335095284,1723824640665,-292.84764206,0.0003011,7]
[335095285,1723824640682,-834.36391894,0.0003011,7]
[335095287,1723824640692,-151.0,0.0003011,7]
[335095289,1723824640702,-151.0,0.0003011,7]
[335095291,1723824640711,-1446.920243,0.0003011,7]
[335095292,1723824640721,-1446.920243,0.0003011,7]
[335095293,1723824640731,-151.0,0.0003011,7]
[335095294,1723824640740,-151.0,0.0003011,7]
[335095296,1723824640750,-3000.0,0.0003012,2]
[335095297,1723824640760,-3000.0,0.0003013,3]
[335095298,1723824640769,-151.0,0.0003014,7]
[335095299,1723824640779,-151.0,0.0003014,7]
[335095300,1723824640789,-1141.772691,0.0003014,7]
[335095301,1723824640798,-3000.0,0.0003014,3]
[335095302,1723824640808,-1770.592658,0.0003014,7]
[335095303,1723824640820,-1770.592658,0.0003014,7]
[335095304,1723824640829,-3000.0,0.0003015,3]
[335095305,1723824640838,-3000.0,0.0003016,3]
[335095306,1723824640848,-3000.0,0.0003017,3]
[335095307,1723824640857,-153.525346,0.00030173,7]
[335095308,1723824640866,-151.0,0.00030173,7]
[335095309,1723824640875,-151.0,0.00030173,7]
[335095310,1723824640885,-3000.0,0.0003018,3]
[335095311,1723824640895,-3000.0,0.0003019,3]
[335095312,1723824640904,-3000.0,0.000302,3]
[335095313,1723824640914,-3000.0,0.0003021,3]
[335095314,1723824640924,-3000.0,0.0003022,3]
[335095315,1723824640934,-3916.313487,0.0003023,3]
[335095316,1723824640944,-151.0,0.00030266,7]
[335095317,1723824640954,-600.0,0.00030413,7]
[335095318,1723824640963,-1000.0,0.00030554,7]
[335095319,1723824640973,-600.0,0.00030592,7]
[335095320,1723824640984,-1000.0,0.000306,7]
[335095321,1723824640994,-900.0,0.00030741,7]
[335095322,1723824641003,-200.0,0.00030783,4]
[335095323,1723824641013,-200.0,0.00030783,3]
[335095324,1723824641023,-200.22748533,0.00030783,2]
[335095325,1723824641032,-1396.76273472,0.00030864,2]
[335095326,1723824641041,-4892.10774382,0.00031035,2]
[335095327,1723824641051,-1000.0,0.000311,7]
[335095328,1723824641061,-500.0,0.00031197,7]
[335095329,1723824641072,-1000.0,0.0003125,7]
[335095330,1723824641082,-4892.10774382,0.00031422,2]
[335095331,1723824641091,-600.0,0.00031446,5]
[335095332,1723824641101,-1556.992901,0.00031506,7]
[335095333,1723824641111,-1874.702581,0.00031506,7]
[335095334,1723824641120,-1874.702581,0.00031506,7]
[335095335,1723824641220,-151.0,0.00031506,7]
[335095336,1723824641242,-151.0,0.00031506,7]
[335095337,1723824641253,-357.926966,0.00031506,7]
[335095338,1723824641264,-357.926966,0.00031506,7]
[335095339,1723824641274,-1472.33241,0.00031506,7]
[335095340,1723824641284,-1472.33241,0.00031506,7]
[335095341,1723824641295,-151.0,0.00031506,7]
[335095342,1723824641306,-272.111772,0.00031506,7]
[335095343,1723824641318,-272.111772,0.00031506,7]
[335095344,1723824641328,-151.0,0.00031506,7]
[335095345,1723824641338,-4471.91,0.00031506,4]
[335095346,1723824641348,-4471.91,0.00031506,4]
[335095347,1723824641357,-2806.75328036,0.00031506,4]
[335095348,1723824641370,-1665.15671964,0.00031506,4]
[335095349,1723824641380,-4471.91,0.00031506,4]
[335095350,1723824641389,-4471.91,0.00031506,4]
[335095351,1723824641399,-4471.91,0.00031506,4]
[335095352,1723824641410,-4471.91,0.00031506,4]
[335095353,1723824641419,-4471.91,0.00031506,4]
[335095354,1723824641429,-4125.29328036,0.00031506,4]
[335095355,1723824641664,-290.37340138,0.00031506,4]
[335095356,1723824641681,-5242.47821719,0.00024657,2]
[335095357,1723824641691,-56.24331826,0.00031506,4]
[335095358,1723824641700,-4471.91,0.00031506,4]
[335095359,1723824641710,-1127.211561,0.00031506,7]
[335095360,1723824641720,-1127.211561,0.00031506,7]
[335095361,1723824641729,-151.0,0.00031521,7]
[335095362,1723824641739,-4471.91,0.00031594,4]
[335095363,1723824641748,-1000.0,0.000316,7]
[335095364,1723824641758,-500.0,0.00031601,7]
[335095365,1723824641768,-1000.0,0.00031703,7]
[335095366,1723824641777,-150.0,0.0003175,14]
[335095367,1723824641787,-150.0,0.0003175,14]
[335095368,1723824641796,-200.0,0.0003175,14]
[335095369,1723824641806,-4999.999999,0.0003175,120]
[335095370,1723824641815,-151.0,0.0003175,7]
[335095371,1723824641825,-4892.10774382,0.00031764,2]
[335095372,1723824641834,-600.0,0.00031792,7]
[335095373,1723824641843,-1000.0,0.00031847,7]
[335095374,1723824641853,-1000.0,0.00031851,7]
[335095375,1723824641862,-4892.10774382,0.00031938,2]
[335095376,1723824641871,-468.0,0.00032,7]
[335095377,1723824641880,-1000.0,0.00032071,7]
[335095378,1723824641890,-603.0,0.000321,2]
[335095379,1723824641899,-400.0,0.00032153,4]
[335095380,1723824641909,-400.0,0.00032153,3]
[335095381,1723824641919,-1628.88944961,0.00032184,2]
[335095382,1723824641928,-3605.27,0.000322,14]
[335095383,1723824641937,-1208.12,0.000322,7]
[335095384,1723824641947,-39838.0553919,0.000322,14]
[335095385,1723824641956,-151.0,0.000322,7]
[335095386,1723824641966,-151.0,0.000322,7]
[335095387,1723824641976,-1141.772691,0.000322,7]
[335095388,1723824641985,-1770.592658,0.000322,7]
[335095389,1723824641994,-1770.592658,0.000322,7]
[335095390,1723824642004,-151.0,0.000322,7]
[335095391,1723824642013,-151.0,0.000322,7]
[335095392,1723824642022,-1446.920243,0.000322,7]
[335095393,1723824642031,-1446.920243,0.000322,7]
[335095394,1723824642040,-151.0,0.000322,7]
[335095395,1723824642049,-151.0,0.000322,7]
[335095396,1723824642058,-4471.91,0.00032299,4]
[335095397,1723824642069,-4471.91,0.00032299,4]
[335095398,1723824642079,-4471.91,0.00032299,4]
[335095399,1723824642088,-4471.91,0.00032299,4]
[335095400,1723824642097,-4471.91,0.00032299,4]
[335095401,1723824642106,-4471.91,0.00032299,4]
[335095402,1723824642115,-4471.91,0.00032299,4]
[335095403,1723824642125,-4471.91,0.00032299,4]
[335095404,1723824642134,-4471.91,0.00032299,4]
[335095405,1723824642143,-4471.91,0.00032299,4]
[335095406,1723824642152,-4471.91,0.00032299,4]
[335095407,1723824642161,-4471.91,0.00032299,4]
[335095408,1723824642170,-4472.04217553,0.00032299,4]
[335095409,1723824642179,-169839.73452461,0.000323,30]
[335095410,1723824642188,-1693.12448895,0.000323,4]
[335095411,1723824642197,-151.0,0.000323,7]
[335095412,1723824642207,-10600.77690868,0.000323,7]
[335095413,1723824642218,-151.0,0.000323,7]
[335095414,1723824642229,-151.0,0.000323,7]
[335095415,1723824642238,-151.0,0.000323,7]
[335095416,1723824642248,-151.0,0.000323,7]
[335095417,1723824642259,-151.0,0.000323,7]
[335095418,1723824642268,-1141.772691,0.000323,7]
[335095419,1723824642278,-1770.592658,0.000323,7]
[335095420,1723824642289,-1770.592658,0.000323,7]
[335095421,1723824642300,-151.0,0.000323,7]
[335095422,1723824642310,-1556.992901,0.000323,7]
[335095423,1723824642321,-1874.702581,0.000323,7]
[335095424,1723824642330,-1874.702581,0.000323,7]
[335095425,1723824642340,-151.0,0.000323,7]
[335095426,1723824642350,-151.0,0.000323,7]
[335095427,1723824642359,-357.926966,0.000323,7]
[335095428,1723824642368,-357.926966,0.000323,7]
[335095429,1723824642378,-1472.33241,0.000323,7]
[335095430,1723824642388,-1472.33241,0.000323,7]
[335095431,1723824642398,-228.584984,0.000323,7]
[335095432,1723824642407,-272.111772,0.000323,7]
[335095433,1723824642417,-272.111772,0.000323,7]
[335095434,1723824642426,-151.0,0.000323,7]
[335095435,1723824642435,-1127.211561,0.000323,7]
[335095436,1723824642445,-1127.211561,0.000323,7]
[335095437,1723824642455,-151.0,0.000323,7]
[335095438,1723824642465,-151.0,0.000323,7]
[335095439,1723824642474,-1446.920243,0.000323,7]
[335095440,1723824642484,-1446.920243,0.000323,7]
[335095441,1723824642493,-151.0,0.000323,7]
[335095442,1723824642504,-151.0,0.000323,7]
[335095443,1723824642513,-3259.23150661,0.000324,3]
[335095444,1723824642523,-3259.2315066,0.000324,3]
[335095445,1723824642531,-3259.2315066,0.000324,3]
[335095446,1723824642541,-3259.2315066,0.000324,3]
[335095447,1723824642550,-2299.63032641,0.000324,3]
[335095448,1723824642559,-2299.6303264,0.000324,3]
[335095449,1723824642570,-2299.6303264,0.000324,3]
[335095450,1723824642580,-2299.6303264,0.000324,3]
[335095451,1723824642589,-75229.62,0.000324,14]
[335095452,1723824642598,-151.0,0.000324,7]
[335095453,1723824642607,-1000.0,0.00032402,7]
[335095454,1723824642618,-153.0,0.00032438,2]
[335095455,1723824642627,-153.0,0.00032438,2]
[335095456,1723824642637,-153.0,0.00032438,2]
[335095457,1723824642646,-153.0,0.00032438,2]
[335095458,1723824642656,-153.0,0.00032438,2]
[335095459,1723824642665,-306.0,0.00032438,2]
[335095460,1723824642675,-306.0,0.00032438,2]
[335095461,1723824642684,-207.4367972,0.00032438,2]
[335095462,1723824642694,-153.0,0.00032438,2]
[335095463,1723824642703,-306.0,0.00032438,2]
[335095464,1723824642712,-153.0,0.00032438,2]
[335095465,1723824642722,-153.0,0.00032438,2]
[335095466,1723824642731,-207.4367972,0.00032438,2]
[335095467,1723824642740,-153.0,0.00032438,2]
[335095468,1723824642749,-207.4367972,0.00032438,2]
[335095469,1723824642758,-207.4367972,0.00032438,2]
[335095470,1723824642768,-600.0,0.00032702,7]
[335095471,1723824642776,-1413.0,0.00032867,2]
[335095472,1723824642786,-500.0,0.00033099,7]
[335095473,1723824642795,-500.0,0.00033119,7]
[335095474,1723824642804,-1515.28949484,0.00033175,2]
[335095475,1723824642813,-207.4367972,0.0003326,2]
[335095476,1723824642823,-207.4367972,0.0003326,2]
[335095477,1723824642832,-207.4367972,0.0003326,2]
[335095478,1723824642841,-900.0,0.00033548,7]
[335095479,1723824642851,-1396.76273472,0.00033719,2]
[335095480,1723824642862,-1000.0,0.00033725,7]
[335095481,1723824642871,-500.0,0.00033745,7]
[335095482,1723824642880,-800.0,0.00033787,5]
[335095483,1723824642890,-159.21,0.000339,31]
[335095484,1723824642899,-600.0,0.00033925,7]
[335095485,1723824642908,-900.0,0.00033925,7]
[335095486,1723824642918,-5000.0,0.00033927,14]
[335095487,1723824642928,-900.0,0.00033976,7]
[335095488,1723824642937,-151.0,0.00033979,7]
[335095489,1723824642947,-151.0,0.00033979,7]
[335095490,1723824642956,-600.0,0.00034156,4]
[335095491,1723824642965,-200.44103282,0.00034156,3]
[335095492,1723824642975,-900.0,0.00034218,7]
[335095494,1723824642984,-1000.0,0.00034339,7]
[335095495,1723824642993,-600.0,0.00034416,7]
[335095496,1723824643003,-1141.772691,0.00034491,7]
[335095497,1723824643012,-1770.592658,0.00034491,7]
[335095498,1723824643021,-1770.592658,0.00034491,7]
[335095499,1723824643030,-1556.992901,0.00034491,7]
[335095500,1723824643039,-1874.702581,0.00034491,7]
[335095501,1723824643048,-1874.702581,0.00034491,7]
[335095502,1723824643057,-151.0,0.00034491,7]
[335095503,1723824643067,-151.0,0.00034491,7]
[335095504,1723824643076,-1472.33241,0.00034491,7]
[335095505,1723824643085,-1472.33241,0.00034491,7]
[335095506,1723824643095,-272.111772,0.00034491,7]
[335095507,1723824643104,-272.111772,0.00034491,7]
[335095508,1723824643113,-151.0,0.00034491,7]
[335095509,1723824643122,-1127.211561,0.00034491,7]
[335095510,1723824643132,-1127.211561,0.00034491,7]
[335095511,1723824643141,-151.0,0.00034491,7]
[335095512,1723824643150,-151.0,0.00034491,7]
[335095513,1723824643159,-1446.920243,0.00034491,7]
[335095514,1723824643168,-1446.920243,0.00034491,7]
[335095515,1723824643272,-151.0,0.00034491,7]
[335095516,1723824643282,-151.0,0.00034491,7]
[335095517,1723824643291,-1000.0,0.00034938,7]
[335095518,1723824643302,-900.0,0.00034966,7]
[335095519,1723824643312,-500.0,0.00035,2]
[335095520,1723824643323,-3605.27,0.000353,14]
[335095521,1723824643333,-1208.12,0.000353,30]
[335095522,1723824643342,-357.926966,0.000353,7]
[335095523,1723824643351,-357.926966,0.000353,7]
[335095524,1723824643361,-162.8626633,0.00035616,120]
[335095525,1723824643371,-151.0,0.00035687,7]
[335095526,1723824643380,-75229.62,0.000357,14]
[335095527,1723824643390,-600.0,0.00035721,7]
[335095528,1723824643399,-273.0447386,0.00035726,2]
[335095529,1723824643408,-600.0,0.00035741,7]
[335095530,1723824643417,-508.676858,0.00035867,2]
[335095531,1723824643878,-904.323142,0.00035867,2]
[335095532,1723824643888,-150.0,0.00035957,2]
[335095533,1723824643898,-521.0,0.00035957,2]
[335095534,1723824643909,-1693.59360434,0.00036,4]
[335095536,1723824643921,-563.78546128,0.00036,4]
[335095538,1723824643932,-600.0,0.00036211,7]
[335095540,1723824643942,-522.42453616,0.00036263,7]
[335095542,1723824644419,-377.57546384,0.00036263,7]
[335095543,1723824644431,-500.0,0.000363,120]
[335095544,1723824644443,-630.51,0.000363,120]
[335095545,1723824644454,-500.0,0.000363,120]
[335095546,1723824644466,-500.0,0.000363,120]
[335095547,1723824644476,-168.89,0.000363,120]
[335095548,1723824644485,-500.0,0.000363,120]
[335095549,1723824644495,-1000.0,0.00036378,5]
[335095550,1723824644505,-800.0,0.00036497,4]
[335095551,1723824644515,-1396.76273472,0.00036573,2]
[335095552,1723824644526,-900.0,0.00036652,7]
[335095553,1723824644540,-600.0,0.00036822,7]
[335095554,1723824644551,-1000.0,0.0003692,7]
[335095555,1723824644562,-1000.0,0.00036944,7]
[335095556,1723824644573,-1000.0,0.00037,15]
[335095557,1723824644584,-150.0,0.00037,12]
[335095558,1723824644594,-900.0,0.0003701,7]
[335095559,1723824644604,-2000.0,0.000372,16]
[335095560,1723824644614,-151.0,0.000372,7]
[335095561,1723824644623,-227.356786,0.000372,7]
[335095562,1723824644633,-198.886339,0.000372,7]
[335095563,1723824644644,-1141.772691,0.000372,7]
[335095564,1723824644654,-1770.592658,0.000372,7]
[335095565,1723824644664,-1770.592658,0.000372,7]
[335095566,1723824644673,-151.0,0.000372,7]
[335095567,1723824644683,-1556.992901,0.000372,7]
[335095568,1723824644693,-1874.702581,0.000372,7]
[335095569,1723824644703,-1874.702581,0.000372,7]
[335095570,1723824644712,-151.0,0.000372,7]
[335095571,1723824644722,-1200.0,0.000372,28]
[335095572,1723824644732,-1200.0,0.000372,28]
[335095573,1723824644742,-1200.0,0.000372,28]
[335095574,1723824644751,-1200.0,0.000372,28]
[335095575,1723824644760,-1200.0,0.000372,28]
[335095576,1723824644771,-1200.0,0.000372,28]
[335095577,1723824644780,-1200.0,0.000372,28]
[335095578,1723824644790,-1200.0,0.000372,28]
[335095579,1723824644799,-151.0,0.000372,7]
[335095580,1723824644809,-1200.0,0.000372,28]
[335095581,1723824644820,-1200.0,0.000372,28]